[Event "WCCC G10 2019"]
[Site "Weifang"]
[Date "2019.08.26"]
[Round "6.5"]
[White "Kaliakhmet, Elnaz"]
[Black "Mai, Hieu Linh"]
[Result "1-0"]
[ECO "C46"]
[WhiteElo "1538"]
[BlackElo "1344"]
[Annotator "NA"]
[PlyCount "139"]
[EventDate "2019.08.21"]
[EventType "swiss"]
[EventCountry "CHN"]
[SourceTitle "playchess.com"]
[Source "ChessBase"]
[SourceQuality "1"]
[TimeControl "40/5400+30:1800+30"]

1. e4 {[%emt 0:00:00]} e5 {[%emt 0:00:08]} 2. Nf3 {[%emt 0:00:00]} Nc6 {[%emt 0:01:02]} 3. Nc3 {[%emt 0:00:40]} Bc5 {[%emt 0:00:41]} 4. Nxe5 {[%emt 0:00:37]} Nxe5 {[%emt 0:00:21]} 5. d4 {[%emt 0:00:07]} Bd6 {[%emt 0:00:19]} 6. dxe5 {[%emt 0:00:32]} Bxe5 {[%emt 0:00:31]} 7. Bd3 {[%emt 0:00:38]} Bxc3+ {[%emt 0:01:50]} 8. bxc3 {[%emt 0:00:06]} d6 {[%emt 0:01:17]} 9. O-O {[%emt 0:01:18]} Nf6 {[%emt 0:02:07]} 10. Ba3 {[%emt 0:01:12]} O-O {[%emt 0:02:20]} 11. e5 {[%emt 0:00:24]} dxe5 {[%emt 0:06:07]} 12. Bxf8 {[%emt 0:00:10]} Qxf8 {[%emt 0:01:23]} 13. Re1 {[%emt 0:00:19]} Qc5 {[%emt 0:05:36]} 14. Qe2 {[%emt 0:01:17]} Qxc3 {[%emt 0:03:37]} 15. Qxe5 {[%emt 0:00:41]} Qxe5 {[%emt 0:01:02]} 16. Rxe5 {[%emt 0:00:14]} Be6 {[%emt 0:01:52]} 17. Bf5 {[%emt 0:03:08]} Bxf5 {[%emt 0:05:21]} 18. Rxf5 {[%emt 0:00:07]} Re8 {[%emt 0:00:40]} 19. Rc5 {[%emt 0:00:49]} c6 {[%emt 0:01:27]} 20. h3 {[%emt 0:03:12]} h6 {[%emt 0:02:34]} 21. Rb1 {[%emt 0:00:57]} Re7 {[%emt 0:03:39]} 22. a4 {[%emt 0:07:46]} Ne4 {[%emt 0:05:29]} 23. Re1 {[%emt 0:11:49]} Nxc5 {[%emt 0:05:57]} 24. Rxe7 {[%emt 0:03:07]} a5 {[%emt 0:04:05]} 25. Re5 {[%emt 0:00:30]} b6 {[%emt 0:01:19]} 26. Re8+ {[%emt 0:03:03]} Kh7 {[%emt 0:00:41]} 27. Rc8 {[%emt 0:00:23]} Nxa4 {[%emt 0:02:08]} 28. Rxc6 {[%emt 0:00:09]} f6 {[%emt 0:04:00]} 29. Kf1 {[%emt 0:00:09]} Kg6 {[%emt 0:01:14]} 30. Ke2 {[%emt 0:04:55]} Kf5 {[%emt 0:04:21]} 31. Kd3 {[%emt 0:01:17]} Ke5 {[%emt 0:10:19]} 32. Kc4 {[%emt 0:02:57]} Nb2+ {[%emt 0:03:31]} 33. Kb3 {[%emt 0:07:53]} Nd1 {[%emt 0:00:45]} 34. Rxb6 {[%emt 0:07:58]} Nxf2 {[%emt 0:03:03]} 35. Rb5+ {[%emt 0:03:32]} Kf4 {[%emt 0:00:52]} 36. c4 {[%emt 0:01:12]} Ne4 {[%emt 0:02:40]} 37. c5 {[%emt 0:01:37]} Ke5 {[%emt 0:04:55]} 38. Rxa5 {[%emt 0:03:56]} g5 {[%emt 0:01:24]} 39. c6+ {[%emt 0:02:15]} Kd6 {[%emt 0:00:48]} 40. Kc4 {[%emt 0:00:42]} Kxc6 {[%emt 0:01:09]} 41. Kd4 {[%emt 0:30:45]} Nd6 {[%emt 0:32:53]} 42. Ra6+ {[%emt 0:00:16]} Kd7 {[%emt 0:02:28]} 43. Kd5 {[%emt 0:00:28]} Nf5 {[%emt 0:00:50]} 44. Ra7+ {[%emt 0:01:33]} Kd8 {[%emt 0:01:21]} 45. Ke6 {[%emt 0:01:04]} Ne3 {[%emt 0:01:23]} 46. g4 {[%emt 0:00:25]} Ng2 {[%emt 0:00:00]} 47. Kxf6 {[%emt 0:00:00]} Nf4 {[%emt 0:00:00]} 48. Ra3 {[%emt 0:00:00]} Kd7 {[%emt 0:00:00]} 49. Kg7 {[%emt 0:00:00]} h5 {[%emt 0:00:00]} 50. gxh5 {[%emt 0:00:00]} Nxh5+ {[%emt 0:00:00]} 51. Kg6 {[%emt 0:00:00]} Nf4+ {[%emt 0:00:00]} 52. Kxg5 {[%emt 0:00:00]} Ne6+ {[%emt 0:00:00]} 53. Kf6 {[%emt 0:00:00]} Nc5 {[%emt 0:00:00]} 54. h4 {[%emt 0:00:00]} Ne4+ {[%emt 0:00:00]} 55. Ke5 {[%emt 0:00:00]} Nc5 {[%emt 0:00:00]} 56. h5 {[%emt 0:00:00]} Ke7 {[%emt 0:00:00]} 57. h6 {[%emt 0:00:00]} Kf7 {[%emt 0:00:00]} 58. Rg3 {[%emt 0:00:00]} Nd7+ {[%emt 0:00:00]} 59. Kf5 {[%emt 0:00:00]} Nf8 {[%emt 0:00:00]} 60. Rg7+ {[%emt 0:00:00]} Ke8 {[%emt 0:00:00]} 61. h7 {[%emt 0:00:00]} Nxh7 {[%emt 0:00:00]} 62. Rxh7 {[%emt 0:00:00]} Kd8 {[%emt 0:00:00]} 63. Ke6 {[%emt 0:00:00]} Kc8 {[%emt 0:00:00]} 64. Rd7 {[%emt 0:00:00]} Kb8 {[%emt 0:00:00]} 65. Kd6 {[%emt 0:00:00]} Kc8 {[%emt 0:00:00]} 66. Kc6 {[%emt 0:00:00]} Kb8 {[%emt 0:00:00]} 67. Rc7 {[%emt 0:00:00]} Ka8 {[%emt 0:00:00]} 68. Kb6 {[%emt 0:00:00]} Kb8 {[%emt 0:00:00]} 69. Rc2 {[%emt 0:00:00]} Ka8 {[%emt 0:00:00]} 70. Rc8# {[%emt 0:00:00]} 1-0

[Event "WCCC G10 2019"]
[Site "Weifang"]
[Date "2019.08.26"]
[Round "6.6"]
[White "Shukhman, Anna"]
[Black "Jiang, Tianyu"]
[Result "1-0"]
[ECO "B42"]
[WhiteElo "1806"]
[BlackElo "1381"]
[Annotator "NA RC"]
[PlyCount "121"]
[EventDate "2019.08.21"]
[EventType "swiss"]
[EventCountry "CHN"]
[SourceTitle "playchess.com"]
[Source "ChessBase"]
[SourceQuality "1"]
[TimeControl "40/5400+30:1800+30"]

1. e4 {[%emt 0:00:00]} c5 {[%emt 0:00:00]} 2. Nf3 {[%emt 0:00:00]} e6 {[%emt 0:00:00]} 3. d4 {[%emt 0:00:00]} cxd4 {[%emt 0:00:00]} 4. Nxd4 {[%emt 0:00:00]} a6 {[%emt 0:00:00]} 5. Bd3 {[%emt 0:00:00]} Qc7 {[%emt 0:00:12]} 6. O-O {[%emt 0:00:00]} Nc6 {[%emt 0:00:13]} 7. Nxc6 {[%emt 0:02:40]} dxc6 {[%emt 0:00:21]} 8. f4 {[%emt 0:00:30]} e5 {[%emt 0:03:31]} 9. f5 {[%emt 0:09:19]} Nf6 {[%emt 0:02:53]} 10. Be3 {[%emt 0:01:56]} Be7 {[%emt 0:01:07]} 11. Qf3 {[%emt 0:01:06]} Bd7 {[%emt 0:04:10]} 12. h3 {[%emt 0:01:29]} O-O-O {[%emt 0:03:17]} 13. Nc3 {[%emt 0:04:11]} c5 {[%emt 0:05:16]} 14. Bc4 {[%emt 0:01:35]} Rdf8 {[%emt 0:06:00]} 15. a4 {[%emt 0:06:46]} Bc6 {[%emt 0:06:29]} 16. Rfd1 {[%emt 0:03:22]} h6 {[%emt 0:01:57]} 17. a5 {[%emt 0:06:55]} Kb8 $16 {[%emt 0:03:51]} 18. Bf2 {[%emt 0:17:01]} g6 {[%emt 0:04:56]} 19. Bg3 {[%emt 0:02:43]} Rhg8 {[%emt 0:09:05]} 20. Bh2 {[%emt 0:03:09]} gxf5 {[%emt 0:12:45]} 21. Qxf5 {[%emt 0:01:07]} Rg5 {[%emt 0:00:32]} 22. Qf3 {[%emt 0:01:35]} Rfg8 {[%emt 0:07:33]} 23. Rd2 {[%emt 0:01:33]} R5g7 {[%emt 0:01:33]} 24. Nd5 {[%emt 0:04:31]} Bxd5 {[%emt 0:01:15]} 25. exd5 {[%emt 0:01:14]} Nd7 {[%emt 0:02:03]} 26. d6 {[%emt 0:05:21]} Bxd6 {[%emt 0:01:25]} 27. Qd3 {[%emt 0:00:52]} Kc8 {[%emt 0:09:39]} 28. Qxd6 {[%emt 0:05:05]} Rxg2+ {[%emt 0:01:18]} 29. Kh1 {[%emt 0:00:14]} Qxd6 {[%emt 0:00:21]} 30. Rxd6 {[%emt 0:00:02]} Rxc2 {[%emt 0:01:52]} 31. Bxf7 {[%emt 0:00:36]} Rgg2 {[%emt 0:01:03]} 32. Bg1 {[%emt 0:00:46]} Rgd2 {[%emt 0:00:46]} 33. Rd1 {[%emt 0:01:10]} Rxd1 {[%emt 0:00:23]} 34. Rxd1 {[%emt 0:00:05]} Kc7 {[%emt 0:00:12]} 35. Bh2 {[%emt 0:01:58]} Re2 {[%emt 0:00:50]} 36. Bh5 {[%emt 0:02:53]} Re3 {[%emt 0:00:44]} 37. Kg2 {[%emt 0:00:22]} Nf6 {[%emt 0:00:49]} 38. Bf3 {[%emt 0:00:41]} Nd7 {[%emt 0:03:21]} 39. Kf2 {[%emt 0:00:53]} Rb3 {[%emt 0:00:43]} 40. Rd2 {[%emt 0:00:12]} h5 {[%emt 0:01:16]} 41. Bg3 {[%emt 0:33:58]} c4 {[%emt 0:31:36]} 42. Bxh5 {[%emt 0:02:13]} Rb5 {[%emt 0:00:48]} 43. Be8 {[%emt 0:00:25]} Nf6 {[%emt 0:02:31]} 44. Bxb5 {[%emt 0:00:05]} Ne4+ {[%emt 0:00:07]} 45. Ke1 {[%emt 0:00:16]} Nxd2 {[%emt 0:00:13]} 46. Bxe5+ {[%emt 0:00:04]} Kd8 {[%emt 0:00:16]} 47. Kxd2 {[%emt 0:00:11]} axb5 {[%emt 0:00:08]} 48. Kc3 {[%emt 0:00:05]} Ke7 {[%emt 0:00:06]} 49. Kb4 {[%emt 0:00:06]} Ke6 {[%emt 0:00:06]} 50. Bc3 {[%emt 0:00:07]} Kf5 {[%emt 0:00:30]} 51. Kxb5 {[%emt 0:00:03]} Kg5 {[%emt 0:00:11]} 52. Kb6 {[%emt 0:00:06]} Kh4 {[%emt 0:00:09]} 53. Kxb7 {[%emt 0:00:05]} Kxh3 {[%emt 0:00:05]} 54. a6 {[%emt 0:00:04]} Kg4 {[%emt 0:00:44]} 55. a7 {[%emt 0:00:04]} Kf5 {[%emt 0:00:17]} 56. a8=Q {[%emt 0:00:08]} Kf4 {[%emt 0:00:21]} 57. Qg8 {[%emt 0:00:13]} Kf5 {[%emt 0:01:06]} 58. Qf7+ {[%emt 0:00:57]} Ke4 {[%emt 0:00:41]} 59. Qf2 {[%emt 0:00:02]} Kd5 {[%emt 0:00:22]} 60. Qf5+ {[%emt 0:00:10]} Kd6 {[%emt 0:00:20]} 61. Bb4# {[%emt 0:00:11] Kd5} 1-0

[Event "WCCC G10 2019"]
[Site "Weifang"]
[Date "2019.08.26"]
[Round "6.7"]
[White "Zhou, Yafei"]
[Black "Yesugen Khuchbayar"]
[Result "1/2-1/2"]
[ECO "E11"]
[WhiteElo "1757"]
[BlackElo "1325"]
[Annotator "NA"]
[PlyCount "156"]
[EventDate "2019.08.21"]
[EventType "swiss"]
[EventCountry "CHN"]
[SourceTitle "playchess.com"]
[Source "ChessBase"]
[SourceQuality "1"]
[TimeControl "40/5400+30:1800+30"]

1. d4 {[%emt 0:00:00]} Nf6 {[%emt 0:00:00]} 2. c4 {[%emt 0:00:00]} e6 {[%emt 0:00:00]} 3. Nf3 {[%emt 0:00:00]} Bb4+ {[%emt 0:00:00]} 4. Bd2 {[%emt 0:00:00]} Bxd2+ {[%emt 0:00:00]} 5. Qxd2 {[%emt 0:00:00]} O-O {[%emt 0:00:16]} 6. Nc3 {[%emt 0:00:04]} d5 {[%emt 0:00:21]} 7. e3 {[%emt 0:01:07]} b6 {[%emt 0:01:23]} 8. cxd5 {[%emt 0:01:26]} exd5 {[%emt 0:01:14]} 9. Bd3 {[%emt 0:00:09]} c5 {[%emt 0:01:22]} 10. dxc5 {[%emt 0:01:55]} bxc5 {[%emt 0:00:49]} 11. O-O {[%emt 0:00:33]} Nc6 {[%emt 0:06:03]} 12. Bb5 {[%emt 0:06:57]} Bb7 {[%emt 0:15:57]} 13. Rfd1 {[%emt 0:00:23]} Ne7 {[%emt 0:06:54]} 14. Rac1 {[%emt 0:01:04]} Qb6 {[%emt 0:12:29]} 15. Be2 {[%emt 0:03:07]} Bc6 {[%emt 0:00:53]} 16. Ne5 {[%emt 0:00:50]} Rfd8 {[%emt 0:06:32]} 17. Bf3 {[%emt 0:04:45]} Rab8 {[%emt 0:13:02]} 18. b3 {[%emt 0:05:36]} Bb5 {[%emt 0:06:11]} 19. Qc2 {[%emt 0:03:31]} Rbc8 {[%emt 0:00:49]} 20. Be2 {[%emt 0:07:06]} Bxe2 {[%emt 0:00:15]} 21. Qxe2 {[%emt 0:02:26]} Qe6 {[%emt 0:03:56]} 22. Nd3 {[%emt 0:03:06]} c4 {[%emt 0:03:32]} 23. Nf4 {[%emt 0:00:36]} Qb6 {[%emt 0:01:17]} 24. bxc4 {[%emt 0:02:16]} dxc4 {[%emt 0:02:07]} 25. Rxd8+ {[%emt 0:03:46]} Qxd8 {[%emt 0:01:32]} 26. Rd1 {[%emt 0:00:21]} Qa5 {[%emt 0:03:33]} 27. Qd2 {[%emt 0:01:24]} h6 {[%emt 0:04:24]} 28. h3 {[%emt 0:01:39]} Nc6 {[%emt 0:03:26]} 29. Ncd5 {[%emt 0:05:17]} Qd8 {[%emt 0:04:37]} 30. Qc3 {[%emt 0:02:03]} Kh8 {[%emt 0:01:32]} 31. Qxc4 {[%emt 0:01:52]} Ne7 {[%emt 0:00:29]} 32. Qb3 {[%emt 0:02:38]} Nexd5 {[%emt 0:00:20]} 33. Nxd5 {[%emt 0:01:19]} Nxd5 {[%emt 0:00:08]} 34. Qxd5 {[%emt 0:01:24]} Qf6 {[%emt 0:00:08]} 35. Qd4 {[%emt 0:02:59]} Qa6 {[%emt 0:00:33]} 36. Rd2 {[%emt 0:02:13]} Rc1+ {[%emt 0:00:41]} 37. Kh2 {[%emt 0:00:07]} Rc6 {[%emt 0:00:54]} 38. Qd8+ {[%emt 0:05:13]} Kh7 {[%emt 0:00:02]} 39. Qd3+ {[%emt 0:01:00]} Qxd3 {[%emt 0:00:07]} 40. Rxd3 {[%emt 0:00:04]} Rc2 {[%emt 0:00:40]} 41. Ra3 {[%emt 0:30:28]} Rxf2 {[%emt 0:30:17]} 42. Kg3 {[%emt 0:00:38]} Rb2 {[%emt 0:00:55]} 43. Rxa7 {[%emt 0:00:04]} Kg6 {[%emt 0:00:16]} 44. Kf3 {[%emt 0:01:09]} h5 {[%emt 0:01:16]} 45. h4 {[%emt 0:02:32]} Rc2 {[%emt 0:00:00]} 46. Ra6+ {[%emt 0:00:00]} f6 {[%emt 0:00:00]} 47. a4 {[%emt 0:00:00]} Rc4 {[%emt 0:00:00]} 48. g3 {[%emt 0:00:00]} Rb4 {[%emt 0:00:00]} 49. e4 {[%emt 0:00:00]} Rb3+ {[%emt 0:00:00]} 50. Kf4 {[%emt 0:00:00]} Rb4 {[%emt 0:00:00]} 51. Ra7 {[%emt 0:00:00]} Rc4 {[%emt 0:00:00]} 52. a5 {[%emt 0:00:00]} Ra4 {[%emt 0:00:00]} 53. Ra6 {[%emt 0:00:00]} Rb4 {[%emt 0:00:00]} 54. Rb6 {[%emt 0:00:00]} Ra4 {[%emt 0:00:00]} 55. a6 {[%emt 0:00:00]} Ra3 {[%emt 0:00:00]} 56. g4 {[%emt 0:02:24]} hxg4 {[%emt 0:00:00]} 57. Kxg4 {[%emt 0:00:07]} Ra4 {[%emt 0:00:00]} 58. h5+ {[%emt 0:02:33]} Kh7 {[%emt 0:04:33]} 59. Re6 {[%emt 0:04:31]} Ra5 {[%emt 0:00:21]} 60. e5 {[%emt 0:09:06]} fxe5 {[%emt 0:02:00]} 61. Kf5 {[%emt 0:03:56]} Kg8 {[%emt 0:01:15]} 62. Kg6 {[%emt 0:01:28]} Kf8 {[%emt 0:00:03]} 63. Rb6 {[%emt 0:00:53]} e4 {[%emt 0:00:24]} 64. Rb8+ {[%emt 0:01:58]} Ke7 {[%emt 0:00:02]} 65. Kxg7 {[%emt 0:00:52]} Rxa6 {[%emt 0:00:46]} 66. h6 {[%emt 0:00:19]} Ra7 {[%emt 0:00:59]} 67. h7 {[%emt 0:00:48]} Ke6+ {[%emt 0:00:16]} 68. Kg6 {[%emt 0:00:44]} Rxh7 {[%emt 0:00:13]} 69. Kxh7 {[%emt 0:00:10]} Kf5 {[%emt 0:00:16]} 70. Kg7 {[%emt 0:02:43]} e3 {[%emt 0:00:26]} 71. Re8 {[%emt 0:00:30]} Kf4 {[%emt 0:00:08]} 72. Kf6 {[%emt 0:01:43]} Kf3 {[%emt 0:00:10]} 73. Ke5 {[%emt 0:00:29]} e2 {[%emt 0:00:31]} 74. Kd4 {[%emt 0:00:23]} Kf2 {[%emt 0:00:08]} 75. Rf8+ {[%emt 0:00:19]} Kg2 {[%emt 0:00:21]} 76. Rg8+ {[%emt 0:00:33]} Kf2 {[%emt 0:00:06]} 77. Re8 {[%emt 0:00:15]} e1=Q {[%emt 0:00:14]} 78. Rxe1 {[%emt 0:00:04]} Kxe1 {[%emt 0:00:05]} 1/2-1/2

[Event "WCCC G10 2019"]
[Site "Weifang"]
[Date "2019.08.26"]
[Round "6.8"]
[White "Yuan, Rui"]
[Black "Khamdamova, Afruza"]
[Result "0-1"]
[ECO "A51"]
[WhiteElo "1008"]
[BlackElo "1607"]
[Annotator "NA RC"]
[PlyCount "56"]
[EventDate "2019.08.21"]
[EventType "swiss"]
[EventCountry "CHN"]
[SourceTitle "playchess.com"]
[Source "ChessBase"]
[SourceQuality "1"]
[TimeControl "40/5400+30:1800+30"]

1. d4 {[%emt 0:00:00]} Nf6 {[%emt 0:00:00]} 2. c4 {[%emt 0:00:00]} e5 {[%emt 0:00:00]} 3. d5 {[%emt 0:00:47]} Bc5 {[%emt 0:00:00]} 4. e3 {[%emt 0:01:23]} O-O {[%emt 0:00:02]} 5. Nc3 {[%emt 0:00:59]} a5 {[%emt 0:00:38]} 6. Bd3 {[%emt 0:00:36]} d6 {[%emt 0:00:13]} 7. Nge2 {[%emt 0:00:43]} c6 {[%emt 0:00:15]} 8. O-O {[%emt 0:00:50]} cxd5 {[%emt 0:18:02]} 9. cxd5 {[%emt 0:00:31]} Ne8 {[%emt 0:00:56]} 10. Ng3 {[%emt 0:01:08]} f5 {[%emt 0:02:41]} 11. Kh1 {[%emt 0:04:09]} Rf6 {[%emt 0:27:23]} 12. f4 {[%emt 0:09:11]} e4 {[%emt 0:03:17]} 13. Be2 {[%emt 0:01:55]} Rh6 {[%emt 0:00:56]} 14. Qe1 {[%emt 0:02:07]} Na6 {[%emt 0:09:36]} 15. a3 {[%emt 0:01:13]} Ba7 {[%emt 0:02:27]} 16. Bxa6 {[%emt 0:01:01]} bxa6 {[%emt 0:00:06]} 17. Nge2 {[%emt 0:00:59]} Nf6 {[%emt 0:01:33]} 18. Ng3 {[%emt 0:06:54]} Rb8 {[%emt 0:04:24]} 19. Rb1 {[%emt 0:02:49]} g6 {[%emt 0:10:40]} 20. Bd2 {[%emt 0:04:12]} Bb7 {[%emt 0:01:41]} 21. h3 {[%emt 0:02:59]} Bxd5 {[%emt 0:10:18]} 22. Nxd5 {[%emt 0:00:21]} Nxd5 {[%emt 0:00:06]} 23. Bxa5 {[%emt 0:00:16]} Qh4 {[%emt 0:00:28]} 24. Bd2 {[%emt 0:00:39]} Rb3 {[%emt 0:00:37]} 25. Rg1 {[%emt 0:15:06]} Nxe3 {[%emt 0:01:06]} 26. Bc3 {[%emt 0:02:01]} Nxg2 {[%emt 0:00:54]} 27. Rxg2 {[%emt 0:09:40]} Qxh3+ {[%emt 0:00:07]} 28. Rh2 {[%emt 0:00:11]} Qxh2# {[%emt 0:00:04]} 0-1

[Event "WCCC G10 2019"]
[Site "Weifang"]
[Date "2019.08.28"]
[Round "7.1"]
[White "Chen, Yining"]
[Black "Mou, Iris"]
[Result "1-0"]
[ECO "D25"]
[WhiteElo "1744"]
[BlackElo "1669"]
[Annotator "NA"]
[PlyCount "177"]
[EventDate "2019.08.21"]
[EventType "swiss"]
[EventCountry "CHN"]
[SourceTitle "playchess.com"]
[Source "ChessBase"]
[SourceQuality "1"]
[TimeControl "40/5400+30:1800+30"]

1. d4 {[%emt 0:00:00]} d5 {[%emt 0:00:00]} 2. c4 {[%emt 0:00:00]} dxc4 {[%emt 0:00:00]} 3. Nf3 {[%emt 0:00:11]} Nf6 {[%emt 0:00:00]} 4. e3 {[%emt 0:00:26]} b5 {[%emt 0:00:04]} 5. a4 {[%emt 0:00:59]} b4 {[%emt 0:00:22]} 6. Bxc4 {[%emt 0:01:22]} e6 {[%emt 0:00:46]} 7. O-O {[%emt 0:01:45]} Be7 {[%emt 0:00:58]} 8. Qe2 {[%emt 0:02:20]} Bb7 {[%emt 0:01:09]} 9. a5 {[%emt 0:02:27]} a6 {[%emt 0:01:06]} 10. Nbd2 {[%emt 0:01:40]} O-O {[%emt 0:03:13]} 11. Nb3 {[%emt 0:01:35]} Nbd7 {[%emt 0:02:33]} 12. Rd1 {[%emt 0:01:41]} c5 {[%emt 0:02:22]} 13. Bd2 {[%emt 0:06:34]} Qb8 {[%emt 0:05:11]} 14. Rac1 {[%emt 0:05:39]} Rc8 {[%emt 0:05:02]} 15. dxc5 {[%emt 0:05:51]} Nxc5 {[%emt 0:02:41]} 16. Nfd4 {[%emt 0:01:09]} Nce4 {[%emt 0:08:33]} 17. Be1 {[%emt 0:04:40]} Qe5 {[%emt 0:05:24]} 18. f3 {[%emt 0:04:51]} Nc5 {[%emt 0:03:37]} 19. Bg3 {[%emt 0:02:28]} Qg5 {[%emt 0:02:27]} 20. Bf4 {[%emt 0:01:51]} Qh5 {[%emt 0:01:43]} 21. e4 {[%emt 0:14:31]} Nfd7 {[%emt 0:11:01]} 22. Be3 {[%emt 0:07:35]} Nxb3 {[%emt 0:07:30]} 23. Nxb3 {[%emt 0:00:33]} Nc5 {[%emt 0:04:41]} 24. Qd2 {[%emt 0:04:49]} Nxb3 {[%emt 0:04:57]} 25. Bxb3 {[%emt 0:00:06]} Rd8 {[%emt 0:01:41]} 26. Qf2 {[%emt 0:03:15]} Qxa5 {[%emt 0:04:10]} 27. Bb6 {[%emt 0:02:06]} Rxd1+ {[%emt 0:04:02]} 28. Bxd1 {[%emt 0:01:00]} Qg5 {[%emt 0:06:39]} 29. f4 {[%emt 0:05:10]} Qh4 {[%emt 0:02:08]} 30. g3 {[%emt 0:01:53]} Qf6 {[%emt 0:00:54]} 31. Bd4 {[%emt 0:05:30]} Qg6 {[%emt 0:03:20]} 32. f5 {[%emt 0:00:54]} Qg5 {[%emt 0:03:18]} 33. Rc7 {[%emt 0:03:56]} Bxe4 {[%emt 0:01:38]} 34. h4 {[%emt 0:00:12]} Qxf5 {[%emt 0:00:27]} 35. Qxf5 {[%emt 0:00:39]} Bxf5 {[%emt 0:01:01]} 36. Rxe7 {[%emt 0:00:14]} Rd8 {[%emt 0:00:44]} 37. Ba4 {[%emt 0:00:40]} h5 {[%emt 0:01:30]} 38. Re8+ {[%emt 0:00:23]} Rxe8 {[%emt 0:00:07]} 39. Bxe8 {[%emt 0:00:02]} Bc2 {[%emt 0:01:13]} 40. Bc5 {[%emt 0:02:21]} a5 {[%emt 0:00:37]} 41. Kf2 {[%emt 0:30:27]} g6 {[%emt 0:07:23]} 42. Ke3 {[%emt 0:00:00]} e5 {[%emt 0:02:29]} 43. Kd2 {[%emt 0:00:00]} Bb3 {[%emt 0:01:16]} 44. Kd3 {[%emt 0:00:00]} Kg7 {[%emt 0:01:15]} 45. Bb5 {[%emt 0:00:00]} f6 {[%emt 0:01:59]} 46. Bc4 {[%emt 0:00:00]} Bd1 {[%emt 0:01:41]} 47. Kd2 {[%emt 0:00:00]} Bg4 {[%emt 0:02:18]} 48. Be2 {[%emt 0:00:00]} Be6 {[%emt 0:01:35]} 49. Bd1 {[%emt 0:00:00]} Bd7 {[%emt 0:00:43]} 50. b3 {[%emt 0:00:00]} Be8 {[%emt 0:02:53]} 51. Bb6 {[%emt 0:00:00]} g5 {[%emt 0:00:47]} 52. Bxa5 {[%emt 0:00:00]} Kg6 {[%emt 0:01:42]} 53. Bxb4 {[%emt 0:00:00]} f5 {[%emt 0:02:50]} 54. Be7 {[%emt 0:00:00]} gxh4 {[%emt 0:00:17]} 55. gxh4 {[%emt 0:00:00]} f4 {[%emt 0:00:51]} 56. Bd6 {[%emt 0:00:00]} Kf5 {[%emt 0:00:49]} 57. b4 {[%emt 0:00:00]} e4 {[%emt 0:01:08]} 58. Be2 {[%emt 0:00:00]} e3+ {[%emt 0:01:31]} 59. Ke1 {[%emt 0:00:00]} Ke4 {[%emt 0:01:11]} 60. b5 {[%emt 0:00:05]} Bd7 {[%emt 0:02:06]} 61. Bxh5 {[%emt 0:03:38]} Bxb5 {[%emt 0:02:12]} 62. Bg6+ {[%emt 0:00:12]} Kf3 {[%emt 0:01:36]} 63. h5 {[%emt 0:01:01]} Bc4 {[%emt 0:00:20]} 64. h6 {[%emt 0:00:56]} Bg8 {[%emt 0:00:08]} 65. h7 {[%emt 0:00:34]} Bxh7 {[%emt 0:00:14]} 66. Bxh7 {[%emt 0:00:03]} e2 {[%emt 0:01:50]} 67. Bd3 {[%emt 0:00:27]} Ke3 {[%emt 0:00:08]} 68. Bxe2 {[%emt 0:00:13]} f3 {[%emt 0:00:08]} 69. Bc5+ {[%emt 0:00:30]} Ke4 {[%emt 0:00:19]} 70. Bd1 {[%emt 0:00:17]} Kd5 {[%emt 0:00:10]} 71. Be3 {[%emt 0:00:09]} Ke4 {[%emt 0:00:08]} 72. Kf2 {[%emt 0:00:03]} Kd5 {[%emt 0:00:10]} 73. Bxf3+ {[%emt 0:00:04]} Ke5 {[%emt 0:00:07]} 74. Kg3 {[%emt 0:00:10]} Kf5 {[%emt 0:00:26]} 75. Bf4 {[%emt 0:00:06]} Ke6 {[%emt 0:00:20]} 76. Be4 {[%emt 0:00:06]} Kf6 {[%emt 0:00:11]} 77. Kg4 {[%emt 0:00:20]} Ke6 {[%emt 0:00:07]} 78. Kg5 {[%emt 0:00:04]} Kf7 {[%emt 0:00:16]} 79. Bd5+ {[%emt 0:00:54]} Ke7 {[%emt 0:00:24]} 80. Be5 {[%emt 0:00:14]} Kd7 {[%emt 0:00:10]} 81. Kf6 {[%emt 0:00:06]} Ke8 {[%emt 0:00:11]} 82. Be6 {[%emt 0:00:57]} Kd8 {[%emt 0:00:29]} 83. Bd6 {[%emt 0:00:04]} Ke8 {[%emt 0:00:07]} 84. Bc7 {[%emt 0:00:06]} Kf8 {[%emt 0:00:05]} 85. Bd7 {[%emt 0:00:11]} Kg8 {[%emt 0:00:07]} 86. Kg6 {[%emt 0:00:04]} Kf8 {[%emt 0:00:09]} 87. Bd6+ {[%emt 0:00:03]} Kg8 {[%emt 0:00:10]} 88. Be6+ {[%emt 0:00:01]} Kh8 {[%emt 0:00:09]} 89. Be5# {[%emt 0:00:01]} 1-0